fUSD/lending_fUSD_20260106
["ID","MTS","AMOUNT","RATE_DAILY","PERIOD"]
[400493779,1767664240431,-151.0,0.00018,2]
[400493781,1767664240439,-467.87437144,0.00018,2]
[400493783,1767664240449,-151.0,0.00018,2]
[400493785,1767664240457,-151.0,0.00018,2]
[400493787,1767664240467,-926752.9979646,0.00018,2]
[400494133,1767664243713,-226.12083875,0.00017855,2]
[400494135,1767664243722,-227.28409982,0.00017855,2]
[400494137,1767664243732,-500.0,0.00017855,2]
[400494139,1767664243742,-165.38100962,0.00017855,2]
[400494141,1767664243751,-306.99485615,0.00018,2]
[400494143,1767664243763,-3678.94705538,0.00018,2]
[400494204,1767664244340,-1220.52685329,0.00018,2]
[400494206,1767664244352,-1356.55335901,0.00018,2]
[400494216,1767664244442,-1141.95986912,0.00018,2]
[400494327,1767664246367,-4604.95,0.00018,2]
[400494328,1767664246382,-3300.0,0.00018,2]
[400494363,1767664336837,200.0,0.00016469,2]
[400494364,1767664337470,207.4,0.00016469,2]
[400494365,1767664338065,215.0738,0.00016469,2]
[400494366,1767664338707,223.0315306,0.00016469,2]
[400494367,1767664339396,231.28369723,0.00016469,2]
[400494368,1767664339990,239.84119403,0.00016469,2]
[400494369,1767664340589,248.71531821,0.00016469,2]
[400494370,1767664341219,257.91778498,0.00016469,2]
[400494372,1767664630886,223.48,0.00024829,120]
[400494373,1767664637888,200.0,0.00016469,2]
[400494374,1767664638494,207.4,0.00016469,2]
[400494375,1767664639114,215.0738,0.00016469,2]
[400494376,1767664639710,223.0315306,0.00016469,2]
[400494377,1767664640318,231.28369723,0.00016469,2]
[400494378,1767664640914,239.84119403,0.00016469,2]
[400494379,1767664641513,248.71531821,0.00016469,2]
[400494380,1767664642137,257.91778498,0.00016469,2]
[400494381,1767664642746,267.46074303,0.00016469,2]
[400494382,1767664683329,2594.34,0.00032876,120]
[400494383,1767664694930,764.560774,0.00016446,2]
[400494386,1767664831793,500.0,0.00032876,120]
[400494387,1767664832025,500.0,0.00032876,120]
[400494388,1767664832467,500.0,0.00032876,120]
[400494389,1767664832634,500.0,0.00032876,120]
[400494390,1767664832768,500.0,0.00032876,120]
[400494391,1767664833026,500.0,0.00032876,120]
[400494392,1767664833298,500.0,0.00032876,120]
[400494393,1767664833551,500.0,0.00032876,120]
[400494394,1767664833784,500.0,0.00032876,120]
[400494395,1767664834303,500.0,0.00032876,120]
[400494396,1767664834438,500.0,0.00032876,120]
[400494397,1767664834588,500.0,0.00032876,120]
[400494398,1767664834831,423.77509798,0.00032876,120]
[400494400,1767664859800,151.0,0.00016469,2]
[400494401,1767664894918,500.0,0.00032876,120]
[400494402,1767664895195,500.0,0.00032876,120]
[400494403,1767664895446,500.0,0.00032876,120]
[400494404,1767664895654,162.53330755,0.00032876,120]
[400494405,1767664929863,3147.74,0.00032877,120]
[400494406,1767664930356,151.0,0.00016469,2]
[400494407,1767664931627,191.33212509,0.00016469,2]
[400494408,1767664934057,200.0,0.00016157,2]
[400494409,1767664934670,207.4,0.00016157,2]
[400494410,1767664935293,215.0738,0.00016157,2]
[400494411,1767664935900,299.18630056,0.00016157,2]
[400494412,1767664963842,215.58191232,0.00032876,120]
[400494416,1767665003262,520.55,0.00016281,2]
[400494423,1767665062214,999.0,0.00016186,3]
[400494440,1767665410870,298.17872753,0.000328,120]
[400494454,1767665432306,-175.6,0.00016517,2]
[400494455,1767665432317,-300.0,0.00016517,2]
[400494456,1767665432327,-230.07,0.00016525,2]
[400494457,1767665432336,-300.0,0.00016528,2]
[400494458,1767665432347,-249.52,0.00016529,2]
[400494459,1767665432356,-95.95592439,0.00016553,2]
[400494460,1767665432368,-127.52407561,0.00016553,2]
[400494461,1767665432378,-151.35690347,0.00016677,5]
[400494462,1767665432388,-300.0,0.00016699,2]
[400494463,1767665432398,-696.22197482,0.00016699,2]
[400494464,1767665432410,-503.77802518,0.00016699,2]
[400494465,1767665432420,-8555.89278257,0.000167,2]
[400494466,1767665432440,-946.60661743,0.000167,2]
[400494467,1767665432453,-28.84965555,0.0001679,2]
[400494468,1767665432464,-124.72656679,0.0001679,2]
[400494469,1767665432473,-3446.80496709,0.0001679,2]
[400494470,1767665432484,-1537.54747351,0.0001679,2]
[400494471,1767665432496,-739.20525465,0.0001679,2]
[400494480,1767665438349,-822.627884,0.0001679,2]
[400494481,1767665438361,-29699.70197241,0.0001679,2]
[400494482,1767665438370,-1200.0,0.00016798,2]
[400494483,1767665438379,-550.0,0.00016798,2]
[400494484,1767665438388,-500.0,0.00016798,2]
[400494485,1767665438398,-500.0,0.00016798,2]
[400494486,1767665438407,-500.0,0.00016798,2]
[400494487,1767665438416,-500.0,0.00016798,2]
[400494488,1767665438425,-500.0,0.00016798,2]
[400494489,1767665438435,-500.0,0.00016798,2]
[400494490,1767665438447,-500.0,0.00016798,2]
[400494491,1767665438456,-500.0,0.00016798,2]
[400494492,1767665438466,-196.35295383,0.00016798,2]
[400494493,1767665438475,-500.0,0.00016798,2]
[400494494,1767665438485,-500.0,0.00016798,2]
[400494495,1767665438495,-500.0,0.00016798,2]
[400494496,1767665438504,-500.0,0.00016798,2]
[400494497,1767665438513,-500.0,0.00016798,2]
[400494498,1767665438523,-500.0,0.00016798,2]
[400494499,1767665438532,-482.64203681,0.00016798,2]
[400494500,1767665438541,-500.0,0.00016798,2]
[400494501,1767665438551,-500.0,0.00016798,2]
[400494502,1767665438560,-500.0,0.00016798,2]
[400494503,1767665438569,-500.0,0.00016798,2]
[400494504,1767665438579,-500.0,0.00016798,2]
[400494505,1767665438588,-500.0,0.00016798,2]
[400494506,1767665438597,-500.0,0.00016798,2]
[400494507,1767665438607,-500.0,0.00016798,2]
[400494508,1767665438618,-500.0,0.00016798,2]
[400494509,1767665438627,-500.0,0.00016798,2]
[400494510,1767665438636,-500.0,0.00016798,2]
[400494511,1767665438645,-500.0,0.00016798,2]
[400494512,1767665438654,-3497.6422,0.00016799,2]
[400494513,1767665438663,-236.4778,0.00016799,2]
[400494514,1767665438672,-2500.0,0.000168,2]
[400494515,1767665438682,-6958.43694789,0.000168,2]
[400494516,1767665438691,-500.0,0.00016865,2]
[400494517,1767665438700,-431.26,0.00016866,2]
[400494518,1767665438709,-208.74,0.00016867,2]
[400494519,1767665438719,-7532.78,0.00016874,2]
[400494520,1767665438728,-500.0,0.0001689,2]
[400494521,1767665438738,-500.0,0.0001689,2]
[400494522,1767665438747,-500.0,0.0001689,2]
[400494523,1767665438756,-500.0,0.0001689,2]
[400494524,1767665438765,-500.0,0.0001689,2]
[400494525,1767665438774,-500.0,0.0001689,2]
[400494527,1767665438784,-500.0,0.0001689,2]
[400494529,1767665438793,-500.0,0.0001689,2]
[400494531,1767665438802,-500.0,0.0001689,2]
[400494533,1767665438811,-500.0,0.0001689,2]
[400494535,1767665438820,-250.0,0.0001689,2]
[400494537,1767665438829,-500.0,0.0001689,2]
[400494539,1767665438838,-500.0,0.0001689,2]
[400494541,1767665438847,-576.82563898,0.0001689,2]
[400494543,1767665438857,-250.0,0.0001689,2]
[400494545,1767665438866,-500.0,0.0001689,2]
[400494546,1767665438875,-500.0,0.0001689,2]
[400494548,1767665438884,-250.0,0.0001689,2]
[400494550,1767665438894,-500.0,0.0001689,2]
[400494552,1767665438903,-500.0,0.0001689,2]
[400494554,1767665438913,-250.0,0.0001689,2]
[400494556,1767665438922,-500.0,0.0001689,2]
[400494558,1767665438931,-500.0,0.0001689,2]
[400494560,1767665438941,-250.0,0.0001689,2]
[400494563,1767665438953,-500.0,0.0001689,2]
[400494565,1767665438966,-250.0,0.0001689,2]
[400494568,1767665438979,-647.90453124,0.0001689,2]
[400494570,1767665438991,-500.0,0.0001689,2]
[400494572,1767665439003,-250.0,0.0001689,2]
[400494574,1767665439014,-250.0,0.0001689,2]
[400494576,1767665439024,-286.75298181,0.0001689,2]
[400494578,1767665439034,-500.0,0.0001689,2]
[400494580,1767665439044,-500.0,0.0001689,2]
[400494582,1767665439056,-500.0,0.0001689,2]
[400494585,1767665439068,-500.0,0.0001689,2]
[400494587,1767665439080,-500.0,0.0001689,2]
[400494589,1767665439091,-500.0,0.0001689,2]
[400494591,1767665439103,-500.0,0.0001689,2]
[400494593,1767665439114,-602.14678314,0.0001689,2]
[400494596,1767665439126,-1238.815,0.00016899,2]
[400494598,1767665439138,-500.0,0.00016899,2]
[400494600,1767665439150,-500.0,0.00016899,2]
[400494602,1767665439162,-9999.99,0.00016922,2]
[400494605,1767665439174,-9999.99,0.00016922,2]
[400494607,1767665439186,-2365.86,0.00016922,2]
[400494609,1767665439197,-1547.8,0.00016922,2]
[400494611,1767665439207,-150.99,0.00016922,2]
[400494613,1767665439217,-9999.99,0.00016922,2]
[400494616,1767665439228,-426.08,0.00016922,2]
[400494618,1767665439238,-4183.71,0.00016922,2]
[400494620,1767665439250,-9999.99,0.00016922,2]
[400494622,1767665439261,-7631.53,0.00016922,2]
[400494624,1767665439272,-150.99,0.00016922,2]
[400494626,1767665439283,-4106.17,0.00016922,2]
[400494629,1767665439295,-499.99,0.00016922,2]
[400494631,1767665439307,-9999.99,0.00016922,2]
[400494633,1767665439318,-6958.43694785,0.00016962,2]
[400494635,1767665439329,-250.0,0.00017,2]
[400494638,1767665439341,-151.43,0.00017053,2]
[400494640,1767665439352,-151.0,0.00017053,2]
[400494642,1767665439363,-151.0,0.00017054,2]
[400494644,1767665439374,-151.0,0.00017057,2]
[400494646,1767665439385,-151.0,0.00017057,2]
[400494649,1767665439396,-151.0,0.00017091,2]
[400494651,1767665439407,-151.0,0.00017091,2]
[400494653,1767665439419,-6958.43694785,0.00017125,2]
[400494655,1767665439430,-500.0,0.00017139,2]
[400494658,1767665439444,-431.26,0.0001714,2]
[400494660,1767665439457,-151.69,0.00017172,2]
[400494662,1767665439469,-6958.43694785,0.00017287,2]
[400494664,1767665439480,-163.0,0.0001736,2]
[400494667,1767665439492,-166.68,0.00017375,2]
[400494669,1767665439502,-210.91209289,0.00017413,2]
[400494671,1767665439512,-431.26,0.00017414,2]
[400494673,1767665439526,-354.0,0.00017423,2]
[400494675,1767665439537,-198.0,0.00017425,2]
[400494677,1767665439547,-175.6,0.00017434,2]
[400494680,1767665439561,-6958.43694785,0.0001745,2]
[400494682,1767665439573,-354.0,0.00017553,2]
[400494684,1767665439583,-500.0,0.00017573,2]
[400494686,1767665439594,-350.48753114,0.00017573,2]
[400494688,1767665439605,-500.0,0.00017573,2]
[400494690,1767665439615,-500.0,0.00017573,2]
[400494693,1767665439626,-500.0,0.00017573,2]
[400494695,1767665439637,-503.52117386,0.00017573,2]
[400494697,1767665439647,-6958.43694785,0.00017612,2]
[400494699,1767665439657,-5262.5476523,0.0001764,2]
[400494701,1767665439666,-431.26,0.00017688,2]
[400494703,1767665439677,-4555.0777368,0.000177,2]
[400494704,1767665439686,-300.0,0.00017715,2]
[400494705,1767665439697,-300.0,0.00017715,2]
[400494706,1767665439709,-300.0,0.00017717,2]
[400494707,1767665439722,-300.0,0.00017719,2]
[400494708,1767665439732,-300.0,0.00017719,2]
[400494709,1767665439742,-1113.0,0.0001772,2]
[400494710,1767665439751,-300.0,0.00017723,2]
[400494711,1767665439761,-300.0,0.0001773,2]
[400494712,1767665439770,-300.0,0.00017731,2]
[400494713,1767665439780,-238.06910124,0.00017731,2]
[400494714,1767665439790,-300.92999657,0.00017731,2]
[400494715,1767665439801,-255.19351802,0.00017731,2]
[400494716,1767665439812,-256.50634122,0.00017731,2]
[400494719,1767665439824,-300.0,0.00017732,2]
[400494721,1767665439835,-33569.5495,0.00017733,2]
[400494723,1767665439844,-300.0,0.00017741,2]
[400494725,1767665439854,-300.0,0.00017747,2]
[400494727,1767665439864,-300.0,0.0001775,2]
[400494729,1767665439874,-300.0,0.00017754,2]
[400494731,1767665439884,-300.0,0.00017756,2]
[400494733,1767665439894,-300.0,0.0001776,2]
[400494735,1767665439905,-300.0,0.00017761,2]
[400494737,1767665439915,-300.0,0.00017762,2]
[400494739,1767665439925,-300.0,0.00017767,2]
[400494741,1767665439935,-300.0,0.00017771,2]
[400494743,1767665439945,-300.0,0.00017772,2]
[400494745,1767665439955,-6958.43694785,0.00017775,2]
[400494748,1767665439966,-500.0,0.00017778,2]
[400494750,1767665439977,-300.0,0.00017779,2]
[400494752,1767665439988,-300.0,0.0001778,2]
[400494754,1767665439998,-300.0,0.00017785,2]
[400494756,1767665440010,-300.0,0.00017787,2]
[400494758,1767665440020,-300.0,0.00017787,2]
[400494760,1767665440030,-300.0,0.00017792,2]
[400494763,1767665440042,-150.0,0.00017792,2]
[400494765,1767665440053,-354.0,0.00017793,2]
[400494767,1767665440064,-300.0,0.000178,2]
[400494769,1767665440077,-300.0,0.00017802,2]
[400494771,1767665440088,-300.0,0.00017804,2]
[400494773,1767665440098,-354.0,0.00017804,2]
[400494776,1767665440109,-300.0,0.00017805,2]
[400494778,1767665440119,-300.0,0.00017806,2]
[400494780,1767665440132,-300.0,0.00017806,2]
[400494782,1767665440143,-152.33232489,0.00017809,2]
[400494784,1767665440153,-300.0,0.0001781,2]
[400494787,1767665440164,-300.0,0.00017814,2]
[400494789,1767665440175,-300.0,0.00017824,2]
[400494791,1767665440186,-300.0,0.00017826,2]
[400494793,1767665440196,-300.0,0.00017827,2]
[400494795,1767665440206,-300.0,0.00017828,2]
[400494797,1767665440218,-749.4662188,0.0001783,2]
[400494799,1767665440228,-300.0,0.00017833,2]
[400494802,1767665440238,-300.0,0.00017835,2]
[400494804,1767665440248,-354.0,0.0001784,2]
[400494806,1767665440259,-300.0,0.00017841,2]
[400494808,1767665440269,-300.0,0.00017841,2]
[400494810,1767665440280,-300.0,0.00017843,2]
[400494812,1767665440291,-1266.0,0.00017847,2]
[400494814,1767665440301,-914.0,0.00017847,2]
[400494816,1767665440312,-2435.0,0.00017847,2]
[400494819,1767665440322,-565.0,0.00017847,2]
[400494821,1767665440332,-6549.0,0.00017847,2]
[400494823,1767665440343,-300.0,0.00017847,2]
[400494825,1767665440354,-300.0,0.0001785,2]
[400494827,1767665440364,-300.0,0.00017855,2]
[400494829,1767665440374,-300.0,0.00017855,2]
[400494831,1767665440385,-300.0,0.00017855,2]
[400494834,1767665440395,-300.0,0.0001786,2]
[400494836,1767665440405,-300.0,0.00017864,2]
[400494838,1767665440416,-300.0,0.0001787,2]
[400494840,1767665440426,-300.0,0.00017874,2]
[400494842,1767665440438,-300.0,0.0001788,2]
[400494844,1767665440453,-300.0,0.00017883,2]
[400494847,1767665440463,-300.0,0.00017891,2]
[400494849,1767665440475,-300.0,0.00017891,2]
[400494851,1767665440486,-300.0,0.00017892,2]
[400494853,1767665440497,-300.0,0.00017893,2]
[400494855,1767665440507,-268.76932914,0.00017899,2]
[400494858,1767665440529,-300.0,0.00017899,2]
[400494861,1767665440544,-336.594463,0.000179,2]
[400494863,1767665440557,-298.31721101,0.000179,2]
[400494866,1767665440570,-300.0,0.00017901,2]
[400494868,1767665440580,-1113.0,0.00017906,2]
[400494870,1767665440592,-935.0,0.00017907,2]
[400494872,1767665440604,-300.0,0.00017911,2]
[400494875,1767665440616,-150.0,0.00017915,2]
[400494877,1767665440627,-300.0,0.00017916,2]
[400494879,1767665440638,-300.0,0.00017918,2]
[400494881,1767665440649,-300.0,0.00017923,2]
[400494884,1767665440661,-300.0,0.00017924,2]
[400494886,1767665440671,-300.0,0.00017931,2]
[400494888,1767665440683,-300.0,0.00017936,2]
[400494890,1767665440694,-6958.43694785,0.00017937,2]
[400494893,1767665440705,-300.0,0.00017938,2]
[400494895,1767665440717,-300.0,0.00017943,2]
[400494897,1767665440729,-300.0,0.00017945,2]
[400494899,1767665440740,-300.0,0.00017946,2]
[400494902,1767665440751,-300.0,0.00017947,2]
[400494904,1767665440763,-300.0,0.00017948,2]
[400494906,1767665440774,-300.0,0.00017948,2]
[400494908,1767665440785,-300.0,0.00017952,2]
[400494911,1767665440796,-300.0,0.00017959,2]
[400494913,1767665440807,-300.0,0.00017962,2]
[400494915,1767665440818,-300.0,0.00017962,2]
[400494917,1767665440830,-431.2782291,0.00017962,2]
[400494920,1767665440841,-300.0,0.00017963,2]
[400494922,1767665440852,-770.82279925,0.0001797,2]
[400494924,1767665440866,-504.3199228,0.00017973,2]
[400494927,1767665440878,-506.65163513,0.00017973,2]
[400494929,1767665440890,-150.0,0.00017973,2]
[400494931,1767665440902,-150.0,0.00017973,2]
[400494933,1767665440914,-300.0,0.00017975,2]
[400494936,1767665440925,-300.0,0.00017981,2]
[400494938,1767665440936,-300.0,0.00017982,2]
[400494940,1767665440947,-152.38329665,0.00017982,2]
[400494942,1767665440958,-300.0,0.00017984,2]
[400494945,1767665440970,-300.0,0.00017985,2]
[400494947,1767665440982,-670.0,0.00017989,2]
[400494949,1767665440993,-600.48752458,0.0001799,2]
[400494951,1767665441004,-600.48752458,0.0001799,2]
[400494953,1767665441015,-1467.66845712,0.00017999,5]
[400494956,1767665441026,-500.0,0.00017999,2]
[400494958,1767665441036,-500.0,0.00017999,2]
[400494960,1767665441052,-500.0,0.00017999,2]
[400494963,1767665441063,-500.0,0.00017999,2]
[400494965,1767665441075,-500.0,0.00017999,2]
[400494967,1767665441086,-500.0,0.00017999,2]
[400494969,1767665441098,-500.0,0.00017999,2]
[400494971,1767665441108,-159.63267947,0.00017999,2]
[400494974,1767665441119,-323.23631266,0.00017999,2]
[400494976,1767665441130,-1628000.31390389,0.00018,2]
[400495043,1767665441730,-8316.66750054,0.00018,2]
[400495046,1767665441754,-1386.03873734,0.00018,2]
[400495049,1767665441768,-3729.44527212,0.00018,2]
[400495051,1767665441779,-64689.37208198,0.00018,2]
[400495054,1767665441794,-9015.85975646,0.00018,2]
[400495059,1767665441840,-8636.2463864,0.00018,2]
[400495062,1767665441851,-413.37442513,0.00018,2]
[400495064,1767665441863,-4021.47041392,0.00018,2]
[400495069,1767665441898,-5620.47068658,0.00018,2]
[400495071,1767665441909,-1791.9488168,0.00018,2]
[400495073,1767665441920,-540.01220046,0.00018,2]
[400495089,1767665442057,248.39806163,0.00032876,120]
[400495106,1767665442205,-3568.931106,0.00018,2]
[400495518,1767665446310,-2726.21303154,0.00018,2]
[400495525,1767665446363,-2871.9693331,0.00018,2]
[400495527,1767665446374,-8467.25462014,0.00018,2]
[400495529,1767665446386,-4327.10161883,0.00018,2]
[400495531,1767665446397,-1065.32192759,0.00018,2]
[400495534,1767665446409,-67461.30652722,0.00018,2]
[400495551,1767665446578,-1584.51542371,0.00018,2]
[400495553,1767665446590,-817.05,0.00018,2]
[400495863,1767665832678,500.0,0.00032876,120]
[400495864,1767665833013,572.09021593,0.00032876,120]
[400495872,1767665995921,5177.17,0.00016175,2]
[400495873,1767666000847,2440.5259686,0.000328,120]
[400495878,1767666092337,1062.54,0.00016016,2]
[400495881,1767666198481,5550.72,0.00016438,2]
[400495888,1767666375945,150.0,0.000162,2]
[400495889,1767666376004,150.0,0.00016236,2]
[400495890,1767666376083,150.0,0.00016272,2]
[400495891,1767666376152,150.0,0.00016308,2]
[400495892,1767666376217,150.0,0.00016344,2]
[400495893,1767666376253,150.0,0.0001638,2]
[400495894,1767666376313,150.0,0.00016416,2]
[400495895,1767666376417,150.0,0.00016452,2]
[400495896,1767666376455,150.0,0.00016488,2]
[400495899,1767666393681,500.0,0.00016415,2]
[400495900,1767666393851,500.0,0.0001647,2]
[400495902,1767666434962,640.56,0.00015703,2]
[400495905,1767666466492,1284.56575363,0.00032876,120]
[400495906,1767666498181,239456.174,0.0001649,2]
[400495908,1767666503705,949.85360435,0.00032,120]
[400495912,1767666514946,157.45973788,0.00031,120]
[400495927,1767666631554,-150.0,0.00016524,2]
[400495928,1767666631564,-289.0,0.00016524,2]
[400495929,1767666631573,-7.88,0.00016525,2]
[400495930,1767666631585,-492.12,0.00016525,2]
[400495931,1767666631594,-119.95,0.0001653,2]
[400495932,1767666631605,-180.05,0.0001653,2]
[400495933,1767666631614,-250.0,0.00016543,2]
[400495934,1767666631623,-150.0,0.0001656,2]
[400495935,1767666631632,-181.33914243,0.00016579,2]
[400495936,1767666631641,-300.0,0.00016588,2]
[400495937,1767666631651,-492.49382561,0.00016588,2]
[400495938,1767666631662,-707.50617439,0.00016588,2]
[400495939,1767666631671,-300.0,0.00016588,2]
[400495940,1767666631681,-753.6445866,0.00016589,2]
[400495941,1767666631690,-823.0,0.00016589,2]
[400495942,1767666631699,-150.0,0.00016596,2]
[400495943,1767666631708,-550.0,0.00016602,2]
[400495944,1767666631717,-189.56835398,0.00016603,2]
[400495947,1767666631728,-310.43164602,0.00016603,2]
[400495948,1767666631738,-500.0,0.00016603,2]
[400495949,1767666631750,-500.0,0.00016603,2]
[400495950,1767666631759,-500.0,0.00016603,2]
[400495951,1767666631768,-134.85102852,0.00016603,2]
[400495952,1767666631779,-365.14897148,0.00016603,2]
[400495953,1767666631792,-121.72205852,0.00016603,2]
[400495954,1767666631803,-378.27794148,0.00016603,2]
[400495955,1767666631813,-500.0,0.00016603,2]
[400495956,1767666631822,-500.0,0.00016603,2]
[400495957,1767666631832,-202.946587,0.00016603,2]
[400495958,1767666631843,-297.053413,0.00016603,2]
[400495959,1767666631854,-500.0,0.00016603,2]
[400495960,1767666631864,-500.0,0.00016603,2]
[400495961,1767666631874,-461.946587,0.00016603,2]
[400495963,1767666637500,-38.053413,0.00016603,2]
[400495964,1767666637512,-500.0,0.00016603,2]
[400495965,1767666637522,-96.54560341,0.00016603,2]
[400495966,1767666637534,-403.45439659,0.00016603,2]
[400495967,1767666637543,-243.5889329,0.00016603,2]
[400495968,1767666637553,-450.54616191,0.00016603,2]
[400495969,1767666637563,-500.0,0.00016603,2]
[400495970,1767666637573,-500.0,0.00016603,2]
[400495971,1767666637582,-500.0,0.00016603,2]
[400495972,1767666637591,-500.0,0.00016603,2]
[400495973,1767666637601,-500.0,0.00016603,2]
[400495974,1767666637610,-500.0,0.00016603,2]
[400495975,1767666637619,-500.0,0.00016603,2]
[400495976,1767666637629,-500.0,0.00016603,2]
[400495977,1767666637639,-500.0,0.00016603,2]
[400495978,1767666637648,-500.0,0.00016603,2]
[400495979,1767666637658,-500.0,0.00016603,2]
[400495980,1767666637667,-500.0,0.00016603,2]
[400495981,1767666637677,-7051.89686618,0.00016604,2]
[400495982,1767666637687,-150.0,0.00016632,2]
[400495983,1767666637697,-150.0,0.00016668,2]
[400495984,1767666637706,-1389.607,0.00016679,2]
[400495985,1767666637716,-426.08,0.00016679,2]
[400495986,1767666637725,-9999.99,0.00016679,2]
[400495987,1767666637735,-7631.53,0.00016679,2]
[400495988,1767666637744,-9999.99,0.00016679,2]
[400495989,1767666637753,-150.99,0.00016679,2]
[400495990,1767666637763,-150.99,0.00016679,2]
[400495991,1767666637772,-2365.86,0.00016679,2]
[400495992,1767666637782,-9999.99,0.00016679,2]
[400495993,1767666637795,-9999.99,0.00016679,2]
[400495994,1767666637804,-9999.99,0.00016679,2]
[400495995,1767666637813,-5102.83,0.00016679,2]
[400495996,1767666637823,-499.99,0.00016679,2]
[400495998,1767666637834,-1547.8,0.00016679,2]
[400496000,1767666637842,-500.0,0.0001668,2]
[400496001,1767666637852,-250.0,0.0001668,2]
[400496003,1767666637862,-500.0,0.0001668,2]
[400496005,1767666637872,-250.0,0.0001668,2]
[400496007,1767666637881,-500.0,0.0001668,2]
[400496009,1767666637891,-500.0,0.0001668,2]
[400496010,1767666637900,-250.0,0.0001668,2]
[400496013,1767666637917,-500.0,0.0001668,2]
[400496015,1767666637928,-500.0,0.0001668,2]
[400496017,1767666637937,-250.0,0.0001668,2]
[400496018,1767666637947,-500.0,0.0001668,2]
[400496020,1767666637956,-500.0,0.0001668,2]
[400496022,1767666637965,-250.0,0.0001668,2]
[400496024,1767666637975,-500.0,0.0001668,2]
[400496026,1767666637985,-500.0,0.0001668,2]
[400496028,1767666637996,-250.0,0.0001668,2]
[400496030,1767666638005,-500.0,0.0001668,2]
[400496031,1767666638015,-250.0,0.0001668,2]
[400496033,1767666638024,-500.0,0.0001668,2]
[400496060,1767666638326,-500.0,0.0001668,2]
[400496062,1767666638335,-250.0,0.0001668,2]
[400496064,1767666638345,-500.0,0.0001668,2]
[400496066,1767666638355,-500.0,0.0001668,2]
[400496068,1767666638366,-286.75298181,0.0001668,2]
[400496070,1767666638379,-500.0,0.0001668,2]
[400496072,1767666638389,-500.0,0.0001668,2]
[400496074,1767666638398,-647.90453124,0.0001668,2]
[400496076,1767666638408,-500.0,0.0001668,2]
[400496078,1767666638418,-500.0,0.0001668,2]
[400496079,1767666638427,-500.0,0.0001668,2]
[400496081,1767666638437,-576.82563898,0.0001668,2]
[400496083,1767666638446,-500.0,0.0001668,2]
[400496085,1767666638455,-500.0,0.0001668,2]
[400496087,1767666638466,-500.0,0.0001668,2]
[400496088,1767666638475,-500.0,0.0001668,2]
[400496089,1767666638486,-500.0,0.0001668,2]
[400496090,1767666638496,-500.0,0.0001668,2]
[400496091,1767666638506,-500.0,0.0001668,2]
[400496092,1767666638515,-602.14678314,0.0001668,2]
[400496093,1767666638525,-431.26,0.0001668,2]
[400496094,1767666638535,-500.0,0.00016689,2]
[400496095,1767666638545,-1467.66845712,0.00016689,5]
[400496096,1767666638554,-500.0,0.00016689,2]
[400496097,1767666638563,-500.0,0.00016689,2]
[400496098,1767666638573,-268.76932914,0.00016689,2]
[400496099,1767666638583,-150.0,0.00016704,2]